bitfinex/quotes_BTCUSD_20250412
["timestamp","ask_amount","ask_price","bid_price","bid_amount"]
[1744489972183,0.13256154,85317.0,85316.0,0.00485462]
[1744489972410,0.16256154,85317.0,85314.0,0.0036621]
[1744489973052,0.39698154,85317.0,85314.0,0.0036621]
[1744489973207,0.16356154,85317.0,85314.0,0.0036621]
[1744489973608,0.15084154,85317.0,85314.0,0.0153831]
[1744489973859,0.15184154,85317.0,85315.0,0.00486297]
[1744489974007,0.032,85317.0,85315.0,0.23928697]
[1744489974208,0.002,85317.0,85316.0,0.05442338]
[1744489974410,0.002,85317.0,85316.0,0.06161091]
[1744489974614,0.001,85317.0,85316.0,0.05926686]
[1744489974841,0.001,85317.0,85316.0,0.09176509]
[1744489975072,0.001,85317.0,85316.0,0.06292896]
[1744489975279,0.001,85317.0,85316.0,0.07105244]
[1744489975501,0.003,85317.0,85316.0,0.07105244]
[1744489975860,0.001,85317.0,85316.0,0.07105244]
[1744489976227,0.00056176,85325.0,85322.0,0.01172]
[1744489976443,0.13056176,85325.0,85323.0,0.01218925]
[1744489976679,0.13056176,85325.0,85324.0,0.00732338]
[1744489977549,0.13056176,85325.0,85324.0,0.01098548]
[1744489977753,0.13056176,85325.0,85324.0,0.24538548]
[1744489977952,0.13056176,85325.0,85324.0,0.25025413]
[1744489978406,0.13156176,85325.0,85324.0,0.25025413]
[1744489978817,0.13056176,85325.0,85324.0,0.25025413]
[1744489978985,0.13256176,85325.0,85324.0,0.25025413]
[1744489979495,0.13356176,85325.0,85324.0,0.25025413]
[1744489979869,0.2544033,85325.0,85324.0,0.01585413]
[1744489980076,0.2544033,85325.0,85324.0,0.00853075]
[1744489980278,0.31624415,85325.0,85324.0,0.0036621]
[1744489980882,0.23443,85313.0,85312.0,0.00732338]
[1744489981084,0.54527154,85313.0,85312.0,0.00732338]
[1744489981265,0.69803154,85313.0,85311.0,0.0036621]
[1744489981480,0.12084154,85312.0,85311.0,0.0036621]
[1744489981644,0.31084154,85312.0,85311.0,0.0036621]
[1744489982308,0.011721,85310.0,85306.0,0.011722]
[1744489982553,0.12084154,85309.0,85306.0,0.011722]
[1744489982753,0.29084154,85309.0,85307.0,0.00487143]
[1744489983125,0.29084154,85309.0,85305.0,0.011722]
[1744489983344,0.29084154,85309.0,85308.0,0.00486864]
[1744489983546,0.29084154,85309.0,85306.0,0.011722]
[1744489983766,0.29084154,85309.0,85308.0,0.00486586]
[1744489984005,0.29084154,85309.0,85306.0,0.012722]
[1744489984144,0.29084154,85309.0,85308.0,0.00486864]
[1744489984343,0.29084154,85309.0,85307.0,0.23929514]
[1744489984553,0.29084154,85309.0,85308.0,0.00486029]
[1744489985499,0.29084154,85309.0,85308.0,0.05366029]
[1744489985500,0.17,85309.0,85308.0,0.05366029]
[1744489985708,0.00056176,85325.0,85324.0,0.2344]
[1744489985882,0.18056176,85325.0,85324.0,0.2344]
[1744489986286,0.18056176,85325.0,85324.0,0.23926865]
[1744489987170,0.18056176,85325.0,85324.0,0.25025249]
[1744489987373,0.18256176,85325.0,85324.0,0.25025249]
[1744489987756,0.18656176,85325.0,85324.0,0.25025249]
[1744489988470,0.18256176,85325.0,85324.0,0.25025249]
[1744489988672,0.18456176,85325.0,85324.0,0.25025249]
[1744489989091,0.18556176,85325.0,85324.0,0.25025249]
[1744489990272,0.18400885,85325.0,85324.0,0.25025249]
[1744489990476,0.18400885,85325.0,85324.0,0.34165249]
[1744489990671,0.005,85325.0,85324.0,0.34165249]
[1744489990883,0.34,85346.0,85343.0,0.011717]
[1744489991244,0.12084154,85345.0,85344.0,0.00482511]
[1744489991497,0.30084154,85345.0,85341.0,0.011717]
[1744489991671,0.011717,85343.0,85340.0,0.011717]
[1744489991813,0.12084154,85342.0,85341.0,0.00481675]
[1744489992010,0.29084154,85342.0,85339.0,0.011717]
[1744489992266,0.29084154,85342.0,85340.0,0.00481397]
[1744489992977,0.29084154,85342.0,85340.0,0.00581397]
[1744489993196,0.29084154,85342.0,85340.0,0.24016797]
[1744489993414,0.17,85342.0,85340.0,0.24016797]
[1744489993734,0.17,85342.0,85340.0,0.24116797]
[1744489994487,0.17,85342.0,85341.0,0.0455]
[1744489994920,0.17,85342.0,85341.0,0.05027494]
[1744489996034,0.17,85342.0,85341.0,0.05227494]
[1744489998374,0.17,85342.0,85341.0,0.05127494]
[1744489999169,0.17,85342.0,85341.0,0.05427494]
[1744490000363,0.00046203,85346.0,85344.0,0.234345]
[1744490000565,0.17046203,85346.0,85344.0,0.234345]
[1744490000808,0.17046203,85346.0,85345.0,0.00465351]
[1744490002320,0.17046203,85346.0,85345.0,0.00565351]
[1744490002930,0.17046203,85346.0,85345.0,0.10025351]
[1744490003131,0.00046203,85346.0,85345.0,0.10259685]
[1744490003330,3e-08,85346.0,85345.0,0.10259643]
[1744490003541,3e-08,85346.0,85345.0,0.44259643]
[1744490003743,0.0004229,85360.0,85358.0,0.234307]
[1744490003920,0.00056165,85359.0,85358.0,0.29585861]
[1744490004135,0.002,85369.0,85358.0,0.29585861]
[1744490004136,0.002,85369.0,85364.0,0.011714]
[1744490004328,0.0004231,85386.0,85364.0,0.011714]
[1744490004329,1e-07,85386.0,85385.0,0.574233]
[1744490004680,1e-07,85386.0,85385.0,0.69507454]
[1744490004880,0.0001386,85386.0,85385.0,0.69507454]
[1744490005222,0.027497,85400.0,85397.0,0.5742]
[1744490005469,0.027497,85400.0,85397.0,0.74314154]
[1744490006408,4.2e-07,85409.0,85408.0,0.57417]
[1744490006609,0.0093782,85412.0,85408.0,0.70671954]
[1744490006610,0.01299608,85411.0,85408.0,0.70671954]
[1744490006810,0.01299608,85411.0,85410.0,0.574164]
[1744490007032,0.01299608,85411.0,85410.0,0.69500554]
[1744490007286,0.0012,85424.0,85420.0,0.234137]
[1744490007454,0.0232109,85421.0,85420.0,0.70951939]
[1744490007657,0.0232109,85421.0,85420.0,0.74307854]
[1744490008665,0.0232109,85421.0,85420.0,0.74807854]
[1744490009441,0.0232109,85421.0,85420.0,0.75007854]
[1744490009639,0.0232109,85421.0,85420.0,0.241137]
[1744490010839,0.0232109,85421.0,85420.0,0.005]
[1744490011102,0.0332109,85421.0,85420.0,0.005]
[1744490011302,0.0232109,85421.0,85420.0,0.12584154]
[1744490011705,0.0232109,85421.0,85420.0,0.12784154]
[1744490012357,0.20736155,85439.0,85432.0,0.011705]
[1744490012551,0.35736155,85439.0,85432.0,0.011705]
[1744490012756,0.011705,85433.0,85429.0,0.011705]
[1744490013001,0.01,85433.0,85430.0,0.011705]
[1744490013617,0.0098,85433.0,85430.0,0.24815296]
[1744490013857,0.0453,85471.0,85441.0,0.24578]
[1744490013858,0.166942,85449.0,85441.0,0.24578]
[1744490013993,1.15,85444.0,85441.0,0.24578]
[1744490014798,1.15,85444.0,85441.0,0.245781]
[1744490016262,1.152,85444.0,85441.0,0.011703]
[1744490016464,1.152,85444.0,85438.0,0.245791]
[1744490016663,0.011703,85443.0,85439.0,0.011704]
[1744490016862,0.15,85443.0,85442.0,0.234076]
[1744490018579,0.15,85443.0,85441.0,0.011703]
[1744490018771,0.15,85443.0,85440.0,0.234082]
[1744490018965,0.15,85443.0,85439.0,0.011704]
[1744490018966,0.161703,85443.0,85439.0,0.011704]
[1744490019173,0.15,85443.0,85440.0,0.245786]
[1744490019332,0.15,85443.0,85442.0,0.234076]
[1744490019537,0.15,85443.0,85440.0,0.245786]
[1744490019738,0.15,85443.0,85442.0,0.234076]
[1744490019947,0.153,85443.0,85442.0,0.234076]
[1744490020596,0.153,85443.0,85440.0,0.245786]
[1744490020775,0.153,85443.0,85440.0,0.011704]
[1744490020978,0.153,85443.0,85440.0,0.245784]
[1744490021176,0.153,85443.0,85440.0,0.011704]
[1744490021403,0.011704,85435.0,85430.0,0.245812]
[1744490021578,0.021704,85435.0,85431.0,0.011705]
[1744490021805,0.01,85435.0,85432.0,0.011705]
[1744490022197,0.011704,85434.0,85431.0,0.011705]
[1744490022395,0.245806,85433.0,85429.0,0.011705]
[1744490022597,0.011705,85430.0,85425.0,0.011706]
[1744490022929,0.161705,85430.0,85427.0,0.011705]
[1744490023725,0.08271635,85430.0,85429.0,0.001]
[1744490024119,0.08271635,85430.0,85425.0,0.245826]
[1744490024120,0.245817,85429.0,85425.0,0.011706]
[1744490024418,0.011705,85429.0,85427.0,0.001]
[1744490024599,0.021705,85429.0,85427.0,0.001]
[1744490025008,0.011705,85429.0,85427.0,0.001]
[1744490025287,0.1552,85447.0,85442.0,0.234076]
[1744490025492,1.18,85444.0,85436.0,0.23409]
[1744490025666,0.011704,85440.0,85435.0,0.011704]
[1744490025900,0.011704,85440.0,85432.0,0.011705]
[1744490025901,0.011704,85439.0,85432.0,0.011705]
[1744490026208,0.011704,85438.0,85432.0,0.011705]
[1744490026386,0.021704,85438.0,85432.0,0.245806]
[1744490026531,0.011704,85434.0,85429.0,0.011705]
[1744490026744,0.011704,85434.0,85424.0,0.234123]
[1744490026745,0.18,85434.0,85430.0,0.234107]
[1744490026944,0.47969444,85462.0,85430.0,0.234107]
[1744490026945,0.15548,85451.0,85443.0,0.234074]
[1744490027143,0.011701,85456.0,85443.0,0.234074]
[1744490027144,1.08,85444.0,85443.0,0.234074]
[1744490027450,1.08,85444.0,85438.0,0.011704]
[1744490027623,1.08,85444.0,85440.0,0.011704]
[1744490028049,1.091703,85444.0,85441.0,0.011703]
[1744490028410,1.091703,85444.0,85443.0,0.002]
[1744490028609,1.091703,85444.0,85441.0,0.011703]
[1744490029501,1.08,85444.0,85443.0,0.234074]
[1744490029649,1.08,85444.0,85443.0,0.236074]
[1744490030232,0.5204607,85444.0,85443.0,0.236074]
[1744490030479,0.5304607,85444.0,85443.0,0.236074]
[1744490030635,0.4504607,85444.0,85443.0,0.236074]
[1744490031273,0.4504607,85444.0,85443.0,0.234074]
[1744490032279,0.4504607,85444.0,85443.0,0.236074]
[1744490034904,0.4504607,85444.0,85443.0,0.002]
[1744490035133,0.4504607,85444.0,85443.0,0.236074]
[1744490035510,0.4504607,85444.0,85443.0,0.002]
[1744490035935,0.4504607,85444.0,85443.0,0.236074]
[1744490036133,0.4504607,85444.0,85443.0,0.002]
[1744490036706,0.3504607,85444.0,85443.0,0.002]
[1744490036907,0.2504607,85444.0,85443.0,0.002]
[1744490037417,0.5245317,85444.0,85443.0,0.002]
[1744490037880,0.53547585,85444.0,85443.0,0.002]
[1744490038165,0.65631739,85444.0,85443.0,0.002]
[1744490038507,0.011704,85439.0,85436.0,0.011704]
[1744490039368,0.011704,85439.0,85437.0,0.03234083]
[1744490039771,0.14254554,85439.0,85437.0,0.03234083]
[1744490039969,0.37663254,85439.0,85437.0,0.03234083]
[1744490040212,0.37663254,85439.0,85438.0,0.03234083]
[1744490041087,0.14254554,85439.0,85438.0,0.03234083]
[1744490041234,0.13254554,85439.0,85438.0,0.03234083]
[1744490041436,0.1434906,85439.0,85438.0,0.03234083]
[1744490041655,0.1534906,85439.0,85438.0,0.03234083]
[1744490042352,0.1534906,85439.0,85438.0,0.03434083]
[1744490042747,0.1534906,85439.0,85438.0,0.03234083]
[1744490042938,0.1534906,85439.0,85438.0,0.03334083]
[1744490043133,0.1534906,85439.0,85438.0,0.001]
[1744490044565,0.1534906,85439.0,85428.0,0.011705]
[1744490044566,0.011705,85431.0,85428.0,0.011705]
[1744490044772,0.011705,85431.0,85429.0,0.03238949]
[1744490044971,0.011705,85431.0,85430.0,0.03238949]
[1744490045595,0.02265006,85431.0,85430.0,0.03238949]
[1744490046022,0.02265006,85431.0,85430.0,0.03338949]
[1744490046629,0.02265006,85431.0,85430.0,0.03638949]
[1744490047236,0.17776635,85432.0,85430.0,0.03638949]
[1744490047437,0.35776635,85432.0,85430.0,0.004]
[1744490047742,0.011705,85431.0,85430.0,0.004]
[1744490048247,0.011705,85431.0,85430.0,0.003]
[1744490048437,0.011705,85431.0,85430.0,0.001]
[1744490048644,0.011705,85431.0,85430.0,0.004]
[1744490048806,0.011705,85431.0,85430.0,0.003]
[1744490049000,0.011705,85431.0,85430.0,0.004]
[1744490049242,0.011705,85431.0,85430.0,0.007]
[1744490049445,0.245804,85434.0,85430.0,0.007]
[1744490049644,0.12084154,85433.0,85430.0,0.007]
[1744490049851,0.30084154,85433.0,85430.0,0.007]
[1744490050050,0.31254654,85433.0,85430.0,0.007]
[1744490050672,0.31254654,85433.0,85430.0,0.006]
[1744490050839,0.31254654,85433.0,85429.0,0.245817]
[1744490051045,0.31254654,85433.0,85430.0,0.001]
[1744490051268,0.54664954,85433.0,85430.0,0.001]
[1744490051445,0.54664954,85433.0,85429.0,0.011705]
[1744490051646,0.54664954,85433.0,85430.0,0.003]
[1744490051994,0.54664954,85433.0,85430.0,0.004]
[1744490052981,0.234107,85431.0,85430.0,0.004]
[1744490053140,0.51494854,85431.0,85430.0,0.004]
[1744490053738,0.51474854,85431.0,85430.0,0.004]
[1744490053943,0.51474854,85431.0,85430.0,0.001]
[1744490054563,0.245817,85429.0,85426.0,0.011706]
[1744490054765,0.011705,85427.0,85424.0,0.011706]
[1744490054972,0.011705,85428.0,85425.0,0.011706]
[1744490055176,0.161705,85428.0,85425.0,0.011706]
[1744490055715,0.011705,85427.0,85421.0,0.245838]
[1744490055901,0.011705,85428.0,85423.0,0.011706]
[1744490056104,0.18,85428.0,85425.0,0.011706]
[1744490057298,0.011704,85435.0,85425.0,0.011706]
[1744490057299,0.01,85433.0,85427.0,0.234118]
[1744490057444,0.01,85433.0,85432.0,0.234104]
[1744490058480,0.01,85433.0,85432.0,0.240104]
[1744490058938,0.01,85433.0,85432.0,0.234104]
[1744490059169,0.01,85433.0,85432.0,0.241104]
[1744490060299,0.01,85433.0,85432.0,0.244104]
[1744490063808,0.01,85433.0,85432.0,0.241104]
[1744490064227,0.01,85433.0,85432.0,0.243104]
[1744490064627,0.01,85433.0,85432.0,0.236104]
[1744490064932,0.01,85433.0,85432.0,0.240104]
[1744490068655,0.01,85433.0,85432.0,0.006]
[1744490068871,0.02,85433.0,85432.0,0.006]
[1744490069439,0.14084154,85433.0,85432.0,0.004]
[1744490069633,0.14084154,85433.0,85423.0,0.245833]
[1744490069634,0.011706,85422.0,85417.0,0.011707]
[1744490069838,0.02,85422.0,85418.0,0.011707]
[1744490070032,0.011705,85430.0,85424.0,0.234125]
[1744490070293,0.1317882,85429.0,85426.0,0.011706]
[1744490070487,0.1317882,85429.0,85428.0,0.234115]
[1744490070488,0.01094666,85429.0,85428.0,0.234115]
[1744490071664,0.01,85433.0,85432.0,0.234104]
[1744490071872,0.01,85433.0,85432.0,0.33354505]
[1744490072069,0.01,85433.0,85432.0,0.331204]
[1744490073128,0.01,85433.0,85432.0,0.337204]
[1744490073732,0.01,85433.0,85432.0,0.340204]
[1744490075386,0.2404607,85444.0,85443.0,0.234074]
[1744490075610,0.002,85459.0,85443.0,0.234074]
[1744490075611,0.002,85459.0,85458.0,0.234033]
[1744490075815,3e-07,85468.0,85465.0,0.245713]
[1744490075990,3e-07,85468.0,85467.0,0.234008]
[1744490076194,0.00046207,85468.0,85467.0,0.234008]
[1744490076448,0.00046207,85468.0,85467.0,0.23634763]
[1744490076629,0.00046207,85468.0,85467.0,0.36901526]
[1744490076828,0.00046207,85468.0,85467.0,0.4141757]
[1744490077704,0.00046207,85468.0,85467.0,0.24983416]
[1744490078301,0.00046207,85468.0,85467.0,0.25883416]
[1744490078511,0.24488889,85484.0,85478.0,0.011698]
[1744490078803,0.011698,85478.0,85473.0,0.011699]
[1744490079007,0.011699,85475.0,85467.0,0.02182616]
[1744490079216,0.011698,85480.0,85475.0,0.011699]
[1744490079618,0.011698,85479.0,85475.0,0.011699]
[1744490079825,0.00013844,85484.0,85481.0,0.011698]
[1744490080122,0.17183644,85484.0,85479.0,0.233975]
[1744490080327,0.245664,85483.0,85478.0,0.011698]
[1744490080468,0.011698,85479.0,85473.0,0.011699]
[1744490080670,0.245675,85479.0,85473.0,0.011699]
[1744490080968,0.011698,85479.0,85476.0,0.011699]
[1744490081116,0.011698,85478.0,85475.0,0.001]
[1744490081321,0.245676,85478.0,85475.0,0.001]
[1744490081521,0.00013844,85484.0,85481.0,0.245665]
[1744490081776,0.16013844,85484.0,85481.0,0.245665]
[1744490081979,0.16013844,85484.0,85475.0,0.012699]
[1744490081980,0.011698,85482.0,85475.0,0.012699]
[1744490082292,0.141698,85482.0,85477.0,0.011699]
[1744490082446,0.233976,85480.0,85476.0,0.004]
[1744490082650,0.011698,85479.0,85476.0,0.004]
[1744490082846,0.255674,85479.0,85476.0,0.004]
[1744490083050,0.01,85479.0,85475.0,0.011699]
[1744490083251,0.011698,85480.0,85475.0,0.245684]
[1744490083433,0.181698,85480.0,85475.0,0.245684]
[1744490083633,0.181698,85480.0,85476.0,0.001]
[1744490084105,0.181698,85480.0,85475.0,0.245684]
[1744490084309,0.181698,85480.0,85476.0,0.011699]
[1744490084840,0.17,85480.0,85477.0,0.24568]
[1744490086091,0.181698,85480.0,85477.0,0.014699]
[1744490087551,0.233978,85478.0,85477.0,0.003]
[1744490087725,0.52481954,85478.0,85477.0,0.003]
[1744490088898,0.011699,85471.0,85467.0,0.0117]
[1744490089047,0.181699,85471.0,85467.0,0.245707]
[1744490089396,0.0117,85467.0,85463.0,0.0117]
[1744490089582,0.01,85467.0,85464.0,0.0117]
[1744490089884,0.011701,85462.0,85458.0,0.011701]
[1744490090091,0.171701,85462.0,85458.0,0.011701]
[1744490090329,0.171701,85462.0,85459.0,0.011701]
[1744490090472,0.18,85462.0,85460.0,0.011701]
[1744490090887,0.18,85462.0,85457.0,0.234033]
[1744490090888,0.245732,85459.0,85452.0,0.245751]
[1744490091088,0.13254254,85458.0,85446.0,0.011703]
[1744490091255,0.011702,85455.0,85451.0,0.011702]
[1744490091460,0.011702,85453.0,85449.0,0.011702]
[1744490091771,0.011702,85452.0,85449.0,0.011702]
[1744490091970,0.011702,85452.0,85447.0,0.245766]
[1744490092180,0.011702,85451.0,85448.0,0.011703]
[1744490092383,0.011702,85451.0,85444.0,0.011703]
[1744490092384,0.234057,85449.0,85444.0,0.011703]
[1744490092610,0.011702,85450.0,85447.0,0.011703]
[1744490092917,0.00013836,85451.0,85450.0,0.234055]
[1744490093691,0.00013836,85451.0,85450.0,0.57639535]
[1744490093890,3.6e-07,85451.0,85450.0,0.326955]
[1744490094091,3.6e-07,85451.0,85450.0,0.78779654]
[1744490094291,0.00893695,85468.0,85467.0,0.234008]
[1744490094514,0.00893695,85468.0,85467.0,0.23446977]
[1744490094740,0.011698,85484.0,85479.0,0.011698]
[1744490094965,0.141698,85484.0,85479.0,0.011698]
[1744490095138,0.011698,85478.0,85474.0,0.245688]
[1744490095294,0.11,85478.0,85475.0,0.011699]
[1744490095502,0.11,85478.0,85476.0,0.233983]
[1744490095925,0.11,85478.0,85475.0,0.011699]
[1744490096523,0.11,85478.0,85474.0,0.245688]
[1744490096524,0.121698,85478.0,85474.0,0.245688]
[1744490096722,0.11,85478.0,85475.0,0.011699]
[1744490096929,0.11,85478.0,85476.0,0.233983]
[1744490098236,0.11,85478.0,85476.0,0.236983]
[1744490098454,0.11,85478.0,85476.0,0.236982]
[1744490098597,0.11,85478.0,85476.0,0.003]
[1744490099006,0.23084154,85478.0,85476.0,0.003]
[1744490100676,0.12084154,85477.0,85476.0,0.003]
[1744490100878,0.25084154,85477.0,85476.0,0.003]
[1744490101559,0.26254054,85477.0,85473.0,0.011699]
[1744490101762,0.011699,85475.0,85470.0,0.245699]
[1744490101964,0.12084154,85475.0,85472.0,0.245692]
[1744490102392,0.13084154,85475.0,85472.0,0.245692]
[1744490102762,0.13084154,85475.0,85473.0,0.001]
[1744490103402,0.13084154,85475.0,85472.0,0.245692]
[1744490103833,0.13084154,85475.0,85474.0,0.233989]
[1744490104465,0.169217,85485.0,85484.0,0.233961]
[1744490104466,0.15752,85485.0,85484.0,0.233961]
[1744490104672,0.45836154,85485.0,85484.0,0.233961]
[1744490104910,0.30224154,85485.0,85484.0,0.233961]
[1744490105461,0.30224154,85485.0,85481.0,0.233969]
[1744490105462,0.30224154,85485.0,85481.0,0.011698]
[1744490105611,0.13253954,85484.0,85478.0,0.011698]
[1744490105811,0.29253954,85484.0,85478.0,0.011698]
[1744490106374,0.011698,85481.0,85478.0,0.011698]
[1744490106595,0.17,85481.0,85478.0,0.011698]
[1744490106798,0.29084154,85481.0,85474.0,0.011699]
[1744490106998,0.011698,85480.0,85476.0,0.011699]
[1744490107237,0.021698,85480.0,85476.0,0.011699]
[1744490107383,0.021698,85480.0,85478.0,0.003]
[1744490107583,0.233984,85476.0,85470.0,0.0117]
[1744490107826,0.011699,85474.0,85470.0,0.0117]
[1744490108032,0.191699,85474.0,85470.0,0.0117]
[1744490108633,0.13254054,85473.0,85469.0,0.00730995]
[1744490108830,0.30254054,85473.0,85468.0,0.01900995]
[1744490109066,0.30254054,85473.0,85469.0,0.0117]
[1744490109472,0.30254054,85473.0,85468.0,0.00730995]
[1744490109473,0.234001,85470.0,85468.0,0.00730995]
[1744490109662,0.234005,85468.0,85467.0,0.00046177]
[1744490109864,0.53484654,85468.0,85467.0,0.00046177]
[1744490111236,0.53484654,85468.0,85467.0,0.00346177]
[1744490111679,0.53484654,85468.0,85467.0,0.00446177]
[1744490113064,0.54938739,85468.0,85467.0,0.00446177]
[1744490113867,0.93698739,85468.0,85467.0,0.00446177]
[1744490114715,0.93698739,85468.0,85467.0,0.00346177]
[1744490114917,2.62692093,85468.0,85467.0,0.00346177]
[1744490115130,2.59219593,85468.0,85467.0,0.00346177]
[1744490115369,3.00569593,85468.0,85467.0,7.7e-07]
[1744490115533,1.47731541,85468.0,85467.0,7.7e-07]
[1744490115874,0.24861685,85442.0,85441.0,0.000846]
[1744490116083,0.71557839,85442.0,85441.0,0.000846]
[1744490117252,0.71603951,85442.0,85441.0,0.000846]
[1744490117738,1.06495135,85442.0,85441.0,0.000846]
[1744490117964,1.06495135,85442.0,85441.0,0.001846]
[1744490119112,1.06595135,85442.0,85441.0,0.001846]
[1744490119501,1.06595135,85442.0,85441.0,0.000846]
[1744490119710,1.07755244,85442.0,85441.0,0.000846]
[1744490119924,1.07955244,85442.0,85441.0,0.000846]
[1744490122728,1.49305244,85442.0,85441.0,0.000846]
[1744490123048,1.97540044,85442.0,85441.0,0.000846]
[1744490123162,1.70339944,85442.0,85441.0,0.000846]
[1744490123433,1.85955944,85442.0,85441.0,0.000846]
[1744490123695,1.85855944,85442.0,85441.0,0.000846]
[1744490123958,1.98228792,85442.0,85441.0,0.000846]
[1744490124250,0.234145,85417.0,85416.0,0.0008462]
[1744490124479,0.52500739,85417.0,85416.0,0.0008462]
[1744490124700,0.68500739,85417.0,85416.0,0.0008462]
[1744490124911,1.02500739,85417.0,85416.0,0.0008462]
[1744490126521,1.02800739,85417.0,85416.0,0.0008462]
[1744490126697,1.02900739,85417.0,85416.0,0.0008462]
[1744490127122,1.02800739,85417.0,85416.0,0.0008462]
[1744490127326,0.62384154,85417.0,85416.0,0.0008462]
[1744490127529,0.32148,85417.0,85416.0,0.0008462]
[1744490127679,0.006,85417.0,85416.0,0.0008462]
[1744490128134,0.003,85417.0,85416.0,0.0008462]
[1744490128799,0.12084154,85417.0,85416.0,0.0008462]
[1744490128999,0.13084154,85417.0,85416.0,0.0008462]
[1744490129359,0.13084154,85417.0,85416.0,0.0018462]
[1744490129557,0.13084154,85417.0,85416.0,0.0008462]
[1744490129966,0.13084154,85417.0,85416.0,0.0018462]
[1744490130167,0.14538239,85417.0,85416.0,0.0018462]
[1744490131543,0.14638239,85417.0,85416.0,0.0018462]
[1744490131999,0.14638239,85417.0,85416.0,0.0008462]
[1744490132298,0.19368239,85417.0,85416.0,0.0008462]
[1744490132537,0.61794313,85417.0,85416.0,0.0008462]
[1744490132705,2.13107813,85417.0,85416.0,0.0008462]
[1744490132909,1.75053513,85417.0,85416.0,0.0008462]
[1744490133211,1.75253513,85417.0,85416.0,0.0008462]
[1744490133420,1.80276439,85417.0,85416.0,0.0008462]
[1744490133615,1.80076439,85417.0,85416.0,0.0008462]
[1744490133817,1.80476439,85417.0,85416.0,0.0008462]
[1744490134024,1.38905939,85417.0,85416.0,0.0008462]
[1744490134169,1.38705939,85417.0,85416.0,0.0008462]
[1744490134377,1.49465083,85417.0,85416.0,0.0008462]
[1744490134583,1.39005939,85417.0,85416.0,0.0008462]
[1744490134937,1.46993039,85417.0,85416.0,0.0008462]
[1744490135326,1.35603262,85417.0,85416.0,0.0008462]
[1744490140211,1.23967462,85417.0,85416.0,0.0008462]
[1744490140939,1.25056353,85417.0,85416.0,0.0008462]
[1744490141141,1.37129201,85417.0,85416.0,0.0008462]
[1744490142108,1.37129643,85417.0,85416.0,0.0008462]
[1744490142263,1.25056795,85417.0,85416.0,0.0008462]
[1744490145273,1.12473795,85417.0,85416.0,0.0008462]
[1744490145476,1.26026295,85417.0,85416.0,0.0008462]
[1744490145720,1.23701295,85417.0,85416.0,0.0008462]
[1744490146273,1.03515295,85417.0,85416.0,0.0008462]
[1744490146476,0.7238971,85417.0,85416.0,0.0008462]
[1744490146616,0.73233572,85417.0,85416.0,0.0008462]
[1744490146816,1.07233572,85417.0,85416.0,0.0008462]
[1744490147247,1.06933572,85417.0,85416.0,0.0008462]
[1744490148158,1.06533572,85417.0,85416.0,0.0008462]
[1744490148674,1.06933572,85417.0,85416.0,0.0008462]
[1744490150347,1.1900642,85417.0,85416.0,0.0008462]
[1744490150489,1.06933572,85417.0,85416.0,0.0008462]
[1744490151986,1.09120749,85417.0,85416.0,0.0008462]
[1744490153430,1.09104871,85417.0,85416.0,0.0008462]
[1744490156802,0.93548871,85417.0,85416.0,0.0008462]
[1744490157012,1.08916871,85417.0,85416.0,0.0008462]
[1744490159373,1.20989719,85417.0,85416.0,0.0008462]
[1744490160055,1.08916871,85417.0,85416.0,0.0008462]
[1744490160853,0.93548871,85417.0,85416.0,0.0008462]
[1744490161055,1.08916871,85417.0,85416.0,0.0008462]
[1744490161496,0.011708,85409.0,85406.0,0.000846]
[1744490161844,0.01454085,85407.0,85406.0,0.000846]
[1744490161994,0.62538239,85407.0,85406.0,0.000846]
[1744490162198,0.64725416,85407.0,85406.0,0.000846]
[1744490162435,0.65814749,85407.0,85406.0,0.000846]
[1744490162843,0.65814749,85407.0,85406.0,0.00198436]
[1744490163157,0.67009217,85407.0,85406.0,0.00198436]
[1744490163596,0.67009217,85407.0,85406.0,0.00398436]
[1744490164046,0.67009217,85407.0,85406.0,0.00198436]
[1744490164283,0.67409217,85407.0,85406.0,0.00198436]
[1744490164499,0.67409217,85407.0,85406.0,0.00098436]
[1744490164999,0.67709217,85407.0,85406.0,0.00098436]
[1744490165584,0.68118534,85407.0,85406.0,0.00098436]
[1744490165907,0.6552204,85407.0,85406.0,0.00098436]
[1744490167111,0.6641485,85407.0,85406.0,0.00098436]
[1744490170816,0.29766297,85407.0,85406.0,0.00098436]
[1744490171038,0.29766297,85407.0,85406.0,0.06162268]
[1744490171039,0.28873487,85407.0,85406.0,0.06162268]
[1744490171602,0.13573487,85407.0,85406.0,0.06162268]
[1744490172062,0.13673487,85407.0,85406.0,0.06162268]
[1744490172386,0.01589333,85407.0,85406.0,0.06162268]
[1744490173138,0.004,85407.0,85406.0,0.06162268]
[1744490173341,0.01089333,85413.0,85410.0,0.011708]
[1744490173456,0.11089333,85413.0,85410.0,0.011708]
[1744490173658,0.11089333,85413.0,85411.0,0.01547364]
[1744490173857,0.1,85413.0,85411.0,0.01547364]
[1744490174557,0.103,85413.0,85411.0,0.01547364]
[1744490174764,0.1,85413.0,85411.0,0.24963464]
[1744490175320,0.103,85413.0,85411.0,0.24963464]
[1744490175736,0.01094446,85412.0,85411.0,0.24963464]
[1744490176947,0.15372,85414.0,85412.0,0.234156]
[1744490177148,0.12,85413.0,85412.0,0.234156]
[1744490177523,0.13094237,85413.0,85412.0,0.234156]
[1744490178562,0.13794237,85413.0,85412.0,0.234156]
[1744490178947,0.13794237,85413.0,85411.0,0.245869]
[1744490179591,0.127,85413.0,85411.0,0.245869]
[1744490179923,0.12,85413.0,85411.0,0.245869]
[1744490180100,0.123,85413.0,85411.0,0.245869]
[1744490181055,0.126,85413.0,85411.0,0.245869]
[1744490181258,0.137707,85413.0,85409.0,0.245873]
[1744490181659,0.126,85413.0,85410.0,0.245869]
[1744490182105,0.123,85413.0,85410.0,0.245869]
[1744490182479,0.125,85413.0,85410.0,0.245869]
[1744490182690,0.125,85413.0,85409.0,0.011708]
[1744490182691,0.12084154,85412.0,85409.0,0.011708]